[Event "Titled Tuesday Blitz November 30 2021"]
[White "Jobava, Baadur"]
[Black "Nakamura, Hikaru"]
[WhiteFideId "13601520"]
[BlackFideId "2016192"]
[WhiteElo "2731"]
[BlackElo "2884"]
[Result "1-0"]
[Round "11"]
[TimeControl "180+1"]
[Date "2021.11.30"]
[WhiteClock "0:00:11"]
[BlackClock "0:00:01"]

1. e4 {[%clk 0:03:00]}  d5 {[%clk 0:03:00]} 2. exd5 {[%clk 0:03:00]}  Qxd5 {[%clk 0:03:01]} 3. Nc3 {[%clk 0:03:01]}  Qa5 {[%clk 0:03:01]} 4. g3 {[%clk 0:03:00]}  c6 {[%clk 0:03:01]} 5. Bg2 {[%clk 0:03:00]}  Nf6 {[%clk 0:02:59]} 6. d4 {[%clk 0:03:00]}  Bf5 {[%clk 0:02:59]} 7. Nf3 {[%clk 0:02:59]}  e6 {[%clk 0:02:58]} 8. O-O {[%clk 0:02:59]}  Bb4 {[%clk 0:02:58]} 9. Bd2 {[%clk 0:02:59]}  O-O {[%clk 0:02:58]} 10. a3 {[%clk 0:02:59]}  Bxc3 {[%clk 0:02:58]} 11. Bxc3 {[%clk 0:03:00]}  Qc7 {[%clk 0:02:59]} 12. Bd2 {[%clk 0:02:57]}  Rd8 {[%clk 0:02:54]} 13. c4 {[%clk 0:02:54]}  Bg4 {[%clk 0:02:45]} 14. h3 {[%clk 0:02:39]}  Bh5 {[%clk 0:02:16]} 15. Re1 {[%clk 0:02:32]}  c5 {[%clk 0:02:10]} 16. Bf4 {[%clk 0:02:23]}  Qc8 {[%clk 0:02:09]} 17. g4 {[%clk 0:02:21]}  Bg6 {[%clk 0:02:09]} 18. Qb3 {[%clk 0:01:39]}  Nc6 {[%clk 0:01:03]} 19. dxc5 {[%clk 0:01:37]}  Rd3 {[%clk 0:00:48]} 20. Qa2 {[%clk 0:01:22]}  a5 {[%clk 0:00:46]} 21. Rad1 {[%clk 0:01:17]}  Nb4 {[%clk 0:00:33]} 22. axb4 {[%clk 0:00:58]}  axb4 {[%clk 0:00:34]} 23. Qxa8 {[%clk 0:00:58]}  Qxa8 {[%clk 0:00:33]} 24. Rxd3 {[%clk 0:00:54]}  Bxd3 {[%clk 0:00:33]} 25. Ne5 {[%clk 0:00:55]}  Bc2 {[%clk 0:00:31]} 26. c6 {[%clk 0:00:55]}  bxc6 {[%clk 0:00:31]} 27. Nxc6 {[%clk 0:00:55]}  Qa4 {[%clk 0:00:22]} 28. c5 {[%clk 0:00:45]}  h5 {[%clk 0:00:20]} 29. Ne7+ {[%clk 0:00:42]}  Kh7 {[%clk 0:00:18]} 30. c6 {[%clk 0:00:41]}  Ne8 {[%clk 0:00:16]} 31. Re5 {[%clk 0:00:22]}  g6 {[%clk 0:00:14]} 32. gxh5 {[%clk 0:00:22]}  Qa1+ {[%clk 0:00:14]} 33. Kh2 {[%clk 0:00:22]}  Qxb2 {[%clk 0:00:15]} 34. hxg6+ {[%clk 0:00:23]}  fxg6 {[%clk 0:00:12]} 35. Rxe6 {[%clk 0:00:20]}  Qd4 {[%clk 0:00:13]} 36. Be3 {[%clk 0:00:14]}  Qc4 {[%clk 0:00:08]} 37. Nd5 {[%clk 0:00:14]}  Ng7 {[%clk 0:00:06]} 38. Nf6+ {[%clk 0:00:11]}  Kh8 {[%clk 0:00:06]} 39. Rd6 {[%clk 0:00:12]}  Nf5 {[%clk 0:00:05]} 40. Rd8+ {[%clk 0:00:11]}  Kg7 {[%clk 0:00:05]} 41. Bg5 {[%clk 0:00:12]}  Qc5 {[%clk 0:00:01]} 42. Rd7+ {[%clk 0:00:10]}  Kf8 {[%clk 0:00:01]} 43. c7 {[%clk 0:00:11]} 1-0


[Site "https://www.chess.com"]

[Event "Titled Tuesday Blitz November 30 2021"]
[White "Kamsky, Gata"]
[Black "Ozen, Bahadir"]
[WhiteFideId "2000024"]
[BlackFideId "6337058"]
[WhiteElo "2645"]
[BlackElo "2503"]
[Result "0-1"]
[Round "11"]
[TimeControl "180+1"]
[Date "2021.11.30"]
[WhiteClock "0:00:03"]
[BlackClock "0:00:04"]

1. e4 {[%clk 0:02:57]}  c6 {[%clk 0:02:59]} 2. d3 {[%clk 0:02:56]}  d5 {[%clk 0:02:59]} 3. Nf3 {[%clk 0:02:56]}  Bg4 {[%clk 0:02:59]} 4. Nbd2 {[%clk 0:02:54]}  e6 {[%clk 0:02:57]} 5. h3 {[%clk 0:02:54]}  Bh5 {[%clk 0:02:57]} 6. g4 {[%clk 0:02:53]}  Bg6 {[%clk 0:02:56]} 7. h4 {[%clk 0:02:53]}  h6 {[%clk 0:02:43]} 8. h5 {[%clk 0:02:43]}  Bh7 {[%clk 0:02:42]} 9. Qe2 {[%clk 0:02:40]}  Bb4 {[%clk 0:02:36]} 10. a3 {[%clk 0:02:35]}  dxe4 {[%clk 0:02:20]} 11. axb4 {[%clk 0:02:33]}  exf3 {[%clk 0:02:20]} 12. Nxf3 {[%clk 0:02:32]}  Ne7 {[%clk 0:02:06]} 13. Bd2 {[%clk 0:02:27]}  Nd7 {[%clk 0:02:00]} 14. g5 {[%clk 0:02:19]}  Bf5 {[%clk 0:01:58]} 15. gxh6 {[%clk 0:02:18]}  gxh6 {[%clk 0:01:58]} 16. Ne5 {[%clk 0:02:11]}  Nf6 {[%clk 0:01:44]} 17. Bg2 {[%clk 0:02:03]}  Qc7 {[%clk 0:01:36]} 18. Bf3 {[%clk 0:02:00]}  a6 {[%clk 0:01:26]} 19. Rg1 {[%clk 0:01:42]}  Rh7 {[%clk 0:01:12]} 20. Nc4 {[%clk 0:01:34]}  Ned5 {[%clk 0:01:10]} 21. Qe5 {[%clk 0:01:29]}  Qxe5+ {[%clk 0:01:06]} 22. Nxe5 {[%clk 0:01:27]}  O-O-O {[%clk 0:01:07]} 23. Ke2 {[%clk 0:01:13]}  Nd7 {[%clk 0:01:01]} 24. Nc4 {[%clk 0:01:09]}  Kc7 {[%clk 0:01:01]} 25. Rg3 {[%clk 0:01:07]}  b5 {[%clk 0:00:39]} 26. Na5 {[%clk 0:01:03]}  c5 {[%clk 0:00:32]} 27. Bxd5 {[%clk 0:01:00]}  exd5 {[%clk 0:00:32]} 28. Nb3 {[%clk 0:00:52]}  c4 {[%clk 0:00:16]} 29. Nd4 {[%clk 0:00:51]}  Re8+ {[%clk 0:00:16]} 30. Kf1 {[%clk 0:00:49]}  Be6 {[%clk 0:00:15]} 31. Rxa6 {[%clk 0:00:48]}  cxd3 {[%clk 0:00:12]} 32. Rxd3 {[%clk 0:00:44]}  Rg7 {[%clk 0:00:09]} 33. Ra7+ {[%clk 0:00:42]}  Kb6 {[%clk 0:00:08]} 34. Ra1 {[%clk 0:00:28]}  Ne5 {[%clk 0:00:08]} 35. Rda3 {[%clk 0:00:26]}  Nc4 {[%clk 0:00:05]} 36. Rg3 {[%clk 0:00:24]}  Nxd2+ {[%clk 0:00:04]} 37. Ke2 {[%clk 0:00:23]}  Rxg3 {[%clk 0:00:04]} 38. fxg3 {[%clk 0:00:24]}  Ne4 {[%clk 0:00:04]} 39. Kf3 {[%clk 0:00:24]}  Rg8 {[%clk 0:00:03]} 40. Kf4 {[%clk 0:00:24]}  Bd7 {[%clk 0:00:01]} 41. Rg1 {[%clk 0:00:22]}  Rg4+ {[%clk 0:00:01]} 42. Ke3 {[%clk 0:00:21]}  Rg5 {[%clk 0:00:02]} 43. Ne2 {[%clk 0:00:19]}  Nf6 {[%clk 0:00:02]} 44. Nf4 {[%clk 0:00:19]}  Nxh5 {[%clk 0:00:02]} 45. Nxh5 {[%clk 0:00:18]}  Rxh5 {[%clk 0:00:03]} 46. c3 {[%clk 0:00:18]}  Rg5 {[%clk 0:00:03]} 47. Kf4 {[%clk 0:00:17]}  Be6 {[%clk 0:00:04]} 48. Rh1 {[%clk 0:00:16]}  Rg6 {[%clk 0:00:05]} 49. Rh5 {[%clk 0:00:16]}  Kc6 {[%clk 0:00:05]} 50. Rh1 {[%clk 0:00:16]}  Kd6 {[%clk 0:00:05]} 51. Ra1 {[%clk 0:00:15]}  Rg4+ {[%clk 0:00:05]} 52. Kf3 {[%clk 0:00:15]}  Re4 {[%clk 0:00:05]} 53. Ra6+ {[%clk 0:00:15]}  Kc7 {[%clk 0:00:05]} 54. Ra5 {[%clk 0:00:15]}  Kb6 {[%clk 0:00:06]} 55. Ra8 {[%clk 0:00:15]}  Re1 {[%clk 0:00:06]} 56. Rb8+ {[%clk 0:00:14]}  Kc6 {[%clk 0:00:05]} 57. Rh8 {[%clk 0:00:14]}  Rh1 {[%clk 0:00:05]} 58. Kf4 {[%clk 0:00:13]}  Rf1+ {[%clk 0:00:03]} 59. Ke3 {[%clk 0:00:13]}  Rb1 {[%clk 0:00:03]} 60. Rxh6 {[%clk 0:00:12]}  Rxb2 {[%clk 0:00:04]} 61. Rh4 {[%clk 0:00:12]}  Kd6 {[%clk 0:00:04]} 62. Rh8 {[%clk 0:00:11]}  Rg2 {[%clk 0:00:03]} 63. Rg8 {[%clk 0:00:07]}  Rc2 {[%clk 0:00:02]} 64. Kd3 {[%clk 0:00:06]}  Rc1 {[%clk 0:00:03]} 65. Kd2 {[%clk 0:00:06]}  Rg1 {[%clk 0:00:03]} 66. Ke3 {[%clk 0:00:06]}  Ke5 {[%clk 0:00:03]} 67. Rg5+ {[%clk 0:00:05]}  f5 {[%clk 0:00:03]} 68. Rg7 {[%clk 0:00:03]}  Rxg3+ {[%clk 0:00:03]} 69. Rxg3 {[%clk 0:00:03]}  f4+ {[%clk 0:00:03]} 70. Kf2 {[%clk 0:00:03]}  fxg3+ {[%clk 0:00:04]} 71. Kxg3 {[%clk 0:00:03]}  Ke4 {[%clk 0:00:04]} 0-1


[Site "https://www.chess.com"]

[Event "Titled Tuesday Blitz November 30 2021"]
[White "Kovalev, Vladislav"]
[Black "Ivanisevic, Ivan"]
[WhiteFideId "13504398"]
[BlackFideId "912417"]
[WhiteElo "2573"]
[BlackElo "2499"]
[Result "1/2-1/2"]
[Round "11"]
[TimeControl "180+1"]
[Date "2021.11.30"]
[WhiteClock "0:00:06"]
[BlackClock "0:00:36"]

1. e4 {[%clk 0:03:00]}  e5 {[%clk 0:02:59]} 2. Nf3 {[%clk 0:03:01]}  Nc6 {[%clk 0:03:00]} 3. Bb5 {[%clk 0:03:01]}  a6 {[%clk 0:02:59]} 4. Ba4 {[%clk 0:03:01]}  Bc5 {[%clk 0:02:59]} 5. O-O {[%clk 0:03:00]}  Nge7 {[%clk 0:02:57]} 6. c3 {[%clk 0:03:00]}  Ba7 {[%clk 0:02:56]} 7. d4 {[%clk 0:03:00]}  Ng6 {[%clk 0:02:56]} 8. Bxc6 {[%clk 0:02:45]}  dxc6 {[%clk 0:02:57]} 9. Nxe5 {[%clk 0:02:45]}  Nxe5 {[%clk 0:02:55]} 10. dxe5 {[%clk 0:02:46]}  Qe7 {[%clk 0:02:31]} 11. Bf4 {[%clk 0:02:44]}  g5 {[%clk 0:02:29]} 12. Be3 {[%clk 0:02:29]}  Bxe3 {[%clk 0:02:26]} 13. fxe3 {[%clk 0:02:30]}  Be6 {[%clk 0:02:12]} 14. Nd2 {[%clk 0:02:13]}  O-O-O {[%clk 0:02:10]} 15. Qe1 {[%clk 0:02:03]}  Qc5 {[%clk 0:02:09]} 16. Nf3 {[%clk 0:01:56]}  h6 {[%clk 0:02:04]} 17. Qf2 {[%clk 0:01:03]}  Bc4 {[%clk 0:01:54]} 18. Rfd1 {[%clk 0:01:02]}  Bd3 {[%clk 0:01:55]} 19. h3 {[%clk 0:00:47]}  Bxe4 {[%clk 0:01:53]} 20. Rd4 {[%clk 0:00:48]}  Bxf3 {[%clk 0:01:33]} 21. Qxf3 {[%clk 0:00:49]}  Qxe5 {[%clk 0:01:33]} 22. Rad1 {[%clk 0:00:41]}  f5 {[%clk 0:01:26]} 23. Kf2 {[%clk 0:00:36]}  Rxd4 {[%clk 0:01:19]} 24. exd4 {[%clk 0:00:34]}  Qe6 {[%clk 0:01:19]} 25. Re1 {[%clk 0:00:27]}  Qxa2 {[%clk 0:01:19]} 26. Qxf5+ {[%clk 0:00:27]}  Kb8 {[%clk 0:01:19]} 27. Re2 {[%clk 0:00:28]}  Qd5 {[%clk 0:01:13]} 28. Qxd5 {[%clk 0:00:22]}  cxd5 {[%clk 0:01:14]} 29. Re6 {[%clk 0:00:23]}  c6 {[%clk 0:01:13]} 30. Kg3 {[%clk 0:00:22]}  a5 {[%clk 0:01:07]} 31. Kg4 {[%clk 0:00:23]}  Ka7 {[%clk 0:01:06]} 32. Kh5 {[%clk 0:00:23]}  Kb6 {[%clk 0:01:06]} 33. Rxh6 {[%clk 0:00:21]}  Re8 {[%clk 0:01:05]} 34. Kxg5 {[%clk 0:00:21]}  Re2 {[%clk 0:01:03]} 35. g4 {[%clk 0:00:22]}  Rxb2 {[%clk 0:01:03]} 36. Rh8 {[%clk 0:00:22]}  Ka7 {[%clk 0:01:02]} 37. Rf8 {[%clk 0:00:20]}  Rc2 {[%clk 0:00:57]} 38. h4 {[%clk 0:00:20]}  Rxc3 {[%clk 0:00:57]} 39. h5 {[%clk 0:00:20]}  Rh3 {[%clk 0:00:56]} 40. h6 {[%clk 0:00:20]}  b5 {[%clk 0:00:56]} 41. Kg6 {[%clk 0:00:15]}  b4 {[%clk 0:00:56]} 42. h7 {[%clk 0:00:15]}  b3 {[%clk 0:00:54]} 43. Rf3 {[%clk 0:00:08]}  Rxh7 {[%clk 0:00:53]} 44. Rxb3 {[%clk 0:00:03]}  Rh4 {[%clk 0:00:52]} 45. Kg5 {[%clk 0:00:01]}  Rh1 {[%clk 0:00:52]} 46. Kf5 {[%clk 0:00:02]}  Rf1+ {[%clk 0:00:50]} 47. Ke5 {[%clk 0:00:03]}  Rg1 {[%clk 0:00:50]} 48. Kd6 {[%clk 0:00:01]}  a4 {[%clk 0:00:44]} 49. Rb4 {[%clk 0:00:01]}  Ka6 {[%clk 0:00:43]} 50. Kxc6 {[%clk 0:00:01]}  Rc1+ {[%clk 0:00:39]} 51. Kxd5 {[%clk 0:00:01]}  Ka5 {[%clk 0:00:39]} 52. Rb8 {[%clk 0:00:02]}  a3 {[%clk 0:00:39]} 53. g5 {[%clk 0:00:03]}  Ka4 {[%clk 0:00:38]} 54. Ra8+ {[%clk 0:00:03]}  Kb3 {[%clk 0:00:38]} 55. Ke6 {[%clk 0:00:04]}  a2 {[%clk 0:00:37]} 56. g6 {[%clk 0:00:04]}  a1=Q {[%clk 0:00:37]} 57. Rxa1 {[%clk 0:00:04]}  Rxa1 {[%clk 0:00:37]} 58. g7 {[%clk 0:00:04]}  Rg1 {[%clk 0:00:37]} 59. Kf7 {[%clk 0:00:05]}  Kc4 {[%clk 0:00:37]} 60. g8=Q {[%clk 0:00:05]}  Rxg8 {[%clk 0:00:36]} 61. Kxg8 {[%clk 0:00:06]}  Kxd4 {[%clk 0:00:36]} 1/2-1/2


[Site "https://www.chess.com"]

[Event "Titled Tuesday Blitz November 30 2021"]
[White "Lavrov, Maxim"]
[Black "Weetik, Vjacheslav"]
[WhiteFideId "4166418"]
[BlackFideId "4153472"]
[WhiteElo "2192"]
[BlackElo "2469"]
[Result "1-0"]
[Round "11"]
[TimeControl "180+1"]
[Date "2021.11.30"]
[WhiteClock "0:00:27"]
[BlackClock "0:00:01"]

1. Nf3 {[%clk 0:03:00]}  c6 {[%clk 0:02:58]} 2. g3 {[%clk 0:03:01]}  d6 {[%clk 0:02:58]} 3. Bg2 {[%clk 0:03:02]}  h6 {[%clk 0:02:59]} 4. O-O {[%clk 0:03:02]}  g5 {[%clk 0:02:59]} 5. d3 {[%clk 0:03:02]}  Bg7 {[%clk 0:02:58]} 6. e4 {[%clk 0:03:02]}  Nd7 {[%clk 0:02:58]} 7. Re1 {[%clk 0:03:02]}  Nf8 {[%clk 0:02:58]} 8. e5 {[%clk 0:03:02]}  g4 {[%clk 0:02:53]} 9. Nh4 {[%clk 0:02:57]}  dxe5 {[%clk 0:02:52]} 10. Nc3 {[%clk 0:02:56]}  Bf6 {[%clk 0:02:35]} 11. Ne4 {[%clk 0:02:48]}  Bxh4 {[%clk 0:02:35]} 12. gxh4 {[%clk 0:02:49]}  Ng6 {[%clk 0:02:30]} 13. h5 {[%clk 0:02:47]}  Nh4 {[%clk 0:02:15]} 14. Bh1 {[%clk 0:02:43]}  Be6 {[%clk 0:01:23]} 15. Ng3 {[%clk 0:02:39]}  f6 {[%clk 0:01:13]} 16. d4 {[%clk 0:02:35]}  Kf7 {[%clk 0:01:07]} 17. dxe5 {[%clk 0:02:24]}  Qxd1 {[%clk 0:01:06]} 18. Rxd1 {[%clk 0:02:25]}  fxe5 {[%clk 0:01:05]} 19. Re1 {[%clk 0:02:25]}  Bd5 {[%clk 0:00:55]} 20. Rxe5 {[%clk 0:02:21]}  Nf6 {[%clk 0:00:55]} 21. Be3 {[%clk 0:02:13]}  Bxh1 {[%clk 0:00:52]} 22. Kxh1 {[%clk 0:02:12]}  Nf3 {[%clk 0:00:53]} 23. Rf5 {[%clk 0:02:08]}  e6 {[%clk 0:00:49]} 24. Rf4 {[%clk 0:02:06]}  e5 {[%clk 0:00:47]} 25. Rb4 {[%clk 0:01:59]}  b6 {[%clk 0:00:47]} 26. Nf5 {[%clk 0:01:48]}  Ke6 {[%clk 0:00:45]} 27. Nxh6 {[%clk 0:01:42]}  Nd5 {[%clk 0:00:45]} 28. Rxg4 {[%clk 0:01:40]}  Raf8 {[%clk 0:00:28]} 29. Rg6+ {[%clk 0:01:34]}  Rf6 {[%clk 0:00:28]} 30. Ng4 {[%clk 0:01:05]}  Rxg6 {[%clk 0:00:26]} 31. hxg6 {[%clk 0:01:05]}  Rh4 {[%clk 0:00:18]} 32. h3 {[%clk 0:00:59]}  e4 {[%clk 0:00:18]} 33. Kg2 {[%clk 0:00:56]}  Rh8 {[%clk 0:00:16]} 34. Kg3 {[%clk 0:00:53]}  Rg8 {[%clk 0:00:16]} 35. c4 {[%clk 0:00:52]}  Ne7 {[%clk 0:00:15]} 36. Kf4 {[%clk 0:00:47]}  Nxg6+ {[%clk 0:00:12]} 37. Kxe4 {[%clk 0:00:47]}  Nfe5 {[%clk 0:00:11]} 38. f4 {[%clk 0:00:44]}  Nxg4 {[%clk 0:00:03]} 39. hxg4 {[%clk 0:00:43]}  Kf7 {[%clk 0:00:04]} 40. Bd4 {[%clk 0:00:34]}  Re8+ {[%clk 0:00:04]} 41. Kf3 {[%clk 0:00:31]}  c5 {[%clk 0:00:04]} 42. Bc3 {[%clk 0:00:31]}  Nh4+ {[%clk 0:00:04]} 43. Kg3 {[%clk 0:00:31]}  Ng6 {[%clk 0:00:05]} 44. f5 {[%clk 0:00:30]}  Ne7 {[%clk 0:00:03]} 45. Kf4 {[%clk 0:00:29]}  Rd8 {[%clk 0:00:02]} 46. g5 {[%clk 0:00:27]}  Nc6 {[%clk 0:00:02]} 47. g6+ {[%clk 0:00:27]}  Ke7 {[%clk 0:00:01]} 48. Kg5 {[%clk 0:00:27]} 1-0


[Site "https://www.chess.com"]

[Event "Titled Tuesday Blitz November 30 2021"]
[White "Mitrabha, Guha"]
[Black "Zhigalko, Sergei"]
[WhiteFideId "5057000"]
[BlackFideId "13502956"]
[WhiteElo "2334"]
[BlackElo "2662"]
[Result "0-1"]
[Round "11"]
[TimeControl "180+1"]
[Date "2021.11.30"]
[WhiteClock "0:00:10"]
[BlackClock "0:00:03"]

1. d4 {[%clk 0:03:00]}  Nf6 {[%clk 0:02:59]} 2. Bf4 {[%clk 0:02:59]}  e6 {[%clk 0:03:00]} 3. e3 {[%clk 0:02:59]}  d5 {[%clk 0:03:00]} 4. Nf3 {[%clk 0:02:59]}  Bd6 {[%clk 0:03:01]} 5. Nbd2 {[%clk 0:02:59]}  O-O {[%clk 0:03:01]} 6. Bd3 {[%clk 0:02:59]}  b6 {[%clk 0:03:02]} 7. c3 {[%clk 0:02:59]}  Ba6 {[%clk 0:02:55]} 8. Bc2 {[%clk 0:02:58]}  c5 {[%clk 0:02:29]} 9. Ne5 {[%clk 0:02:58]}  Qc7 {[%clk 0:02:19]} 10. Qf3 {[%clk 0:02:26]}  cxd4 {[%clk 0:01:51]} 11. exd4 {[%clk 0:02:23]}  Nc6 {[%clk 0:01:51]} 12. Qe3 {[%clk 0:01:56]}  Ng4 {[%clk 0:01:02]} 13. Qh3 {[%clk 0:00:29]}  f5 {[%clk 0:01:01]} 14. Nxg4 {[%clk 0:00:29]}  Bxf4 {[%clk 0:01:01]} 15. Ne3 {[%clk 0:00:30]}  Nxd4 {[%clk 0:00:43]} 16. cxd4 {[%clk 0:00:28]}  Bxe3 {[%clk 0:00:44]} 17. Qxe3 {[%clk 0:00:27]}  Qxc2 {[%clk 0:00:44]} 18. Qb3 {[%clk 0:00:25]}  Rac8 {[%clk 0:00:32]} 19. h4 {[%clk 0:00:18]}  Rf7 {[%clk 0:00:18]} 20. Rh3 {[%clk 0:00:18]}  Rfc7 {[%clk 0:00:14]} 21. Rd1 {[%clk 0:00:15]}  Qc6 {[%clk 0:00:08]} 22. Re3 {[%clk 0:00:13]}  h6 {[%clk 0:00:07]} 23. Nf3 {[%clk 0:00:13]}  Qd6 {[%clk 0:00:04]} 24. Rc3 {[%clk 0:00:11]}  Rxc3 {[%clk 0:00:03]} 25. bxc3 {[%clk 0:00:12]}  Qc7 {[%clk 0:00:03]} 26. Kd2 {[%clk 0:00:12]}  Qf4+ {[%clk 0:00:04]} 27. Ke1 {[%clk 0:00:12]}  Qe4+ {[%clk 0:00:04]} 28. Kd2 {[%clk 0:00:12]}  Qd3+ {[%clk 0:00:04]} 29. Ke1 {[%clk 0:00:10]}  Qe2# {[%clk 0:00:03]} 0-1


[Site "https://www.chess.com"]

[Event "Titled Tuesday Blitz November 30 2021"]
[White "Pranav, V"]
[Black "Jary, Sergey"]
[WhiteFideId "25060783"]
[BlackFideId "14110350"]
[WhiteElo "2351"]
[BlackElo "2260"]
[Result "0-1"]
[Round "11"]
[TimeControl "180+1"]
[Date "2021.11.30"]
[WhiteClock "0:00:01"]
[BlackClock "0:00:12"]

1. e4 {[%clk 0:03:00]}  c5 {[%clk 0:02:59]} 2. Nf3 {[%clk 0:03:00]}  Nc6 {[%clk 0:03:00]} 3. Bb5 {[%clk 0:03:00]}  Qc7 {[%clk 0:02:59]} 4. O-O {[%clk 0:02:59]}  e6 {[%clk 0:02:44]} 5. c3 {[%clk 0:02:58]}  a6 {[%clk 0:02:42]} 6. Bxc6 {[%clk 0:02:56]}  bxc6 {[%clk 0:02:41]} 7. d4 {[%clk 0:02:55]}  d5 {[%clk 0:02:37]} 8. Re1 {[%clk 0:02:54]}  Nf6 {[%clk 0:02:34]} 9. e5 {[%clk 0:02:52]}  Nd7 {[%clk 0:02:31]} 10. Nbd2 {[%clk 0:02:50]}  cxd4 {[%clk 0:02:32]} 11. cxd4 {[%clk 0:02:50]}  Be7 {[%clk 0:02:28]} 12. Nb3 {[%clk 0:02:49]}  O-O {[%clk 0:02:24]} 13. Be3 {[%clk 0:02:49]}  h6 {[%clk 0:02:21]} 14. Rc1 {[%clk 0:02:47]}  Qb6 {[%clk 0:02:16]} 15. Nfd2 {[%clk 0:02:45]}  a5 {[%clk 0:02:14]} 16. Qg4 {[%clk 0:02:41]}  Kh7 {[%clk 0:02:09]} 17. a4 {[%clk 0:02:26]}  Bb4 {[%clk 0:02:08]} 18. Red1 {[%clk 0:02:25]}  Ba6 {[%clk 0:02:04]} 19. Nf1 {[%clk 0:02:21]}  Be7 {[%clk 0:02:03]} 20. Na1 {[%clk 0:02:12]}  Qb4 {[%clk 0:01:59]} 21. Ng3 {[%clk 0:02:11]}  Qb7 {[%clk 0:01:48]} 22. Nh5 {[%clk 0:02:08]}  Rg8 {[%clk 0:01:48]} 23. b3 {[%clk 0:02:05]}  c5 {[%clk 0:01:46]} 24. dxc5 {[%clk 0:02:05]}  Nxe5 {[%clk 0:01:43]} 25. Qg3 {[%clk 0:01:59]}  f6 {[%clk 0:01:42]} 26. Nf4 {[%clk 0:01:58]}  Qd7 {[%clk 0:01:39]} 27. Bd4 {[%clk 0:01:56]}  Nc6 {[%clk 0:01:34]} 28. Qg6+ {[%clk 0:01:51]}  Kh8 {[%clk 0:01:34]} 29. Bb2 {[%clk 0:01:51]}  Bd8 {[%clk 0:01:27]} 30. Nc2 {[%clk 0:01:47]}  Bc7 {[%clk 0:01:24]} 31. Qg4 {[%clk 0:01:40]}  Bxf4 {[%clk 0:01:20]} 32. Qxf4 {[%clk 0:01:41]}  e5 {[%clk 0:01:21]} 33. Qh4 {[%clk 0:01:40]}  Rgb8 {[%clk 0:01:15]} 34. Ne3 {[%clk 0:01:38]}  d4 {[%clk 0:01:13]} 35. Ng4 {[%clk 0:01:38]}  Qf7 {[%clk 0:01:09]} 36. Qg3 {[%clk 0:01:29]}  Bc8 {[%clk 0:01:00]} 37. h3 {[%clk 0:01:28]}  Rxb3 {[%clk 0:00:54]} 38. Qh4 {[%clk 0:01:16]}  Bxg4 {[%clk 0:00:50]} 39. Qxg4 {[%clk 0:01:08]}  Rxb2 {[%clk 0:00:49]} 40. Qe4 {[%clk 0:01:08]}  Qe6 {[%clk 0:00:45]} 41. Rd3 {[%clk 0:01:08]}  Rf8 {[%clk 0:00:41]} 42. Rg3 {[%clk 0:01:07]}  f5 {[%clk 0:00:41]} 43. Qh4 {[%clk 0:01:07]}  f4 {[%clk 0:00:38]} 44. Rg4 {[%clk 0:01:03]}  Qd5 {[%clk 0:00:36]} 45. Rg6 {[%clk 0:01:01]}  Qe4 {[%clk 0:00:33]} 46. Rd6 {[%clk 0:00:44]}  d3 {[%clk 0:00:31]} 47. Kh2 {[%clk 0:00:38]}  Nd4 {[%clk 0:00:30]} 48. c6 {[%clk 0:00:34]}  Nf5 {[%clk 0:00:27]} 49. Rxh6+ {[%clk 0:00:24]}  Nxh6 {[%clk 0:00:27]} 50. c7 {[%clk 0:00:24]}  Qb7 {[%clk 0:00:25]} 51. Qe7 {[%clk 0:00:18]}  Rc8 {[%clk 0:00:23]} 52. Qd7 {[%clk 0:00:10]}  d2 {[%clk 0:00:21]} 53. Rc5 {[%clk 0:00:06]}  Qxc7 {[%clk 0:00:18]} 54. Rxc7 {[%clk 0:00:04]}  Rxc7 {[%clk 0:00:18]} 55. Qd8+ {[%clk 0:00:01]}  Kh7 {[%clk 0:00:18]} 56. Qd3+ {[%clk 0:00:01]}  g6 {[%clk 0:00:16]} 57. Qd6 {[%clk 0:00:02]}  Rbb7 {[%clk 0:00:15]} 58. Qxd2 {[%clk 0:00:01]}  Re7 {[%clk 0:00:15]} 59. Qxa5 {[%clk 0:00:01]}  e4 {[%clk 0:00:14]} 60. Qe1 {[%clk 0:00:01]}  e3 {[%clk 0:00:15]} 61. fxe3 {[%clk 0:00:01]}  fxe3 {[%clk 0:00:15]} 62. a5 {[%clk 0:00:02]}  e2 {[%clk 0:00:15]} 63. a6 {[%clk 0:00:03]}  Ra7 {[%clk 0:00:16]} 64. Qh4 {[%clk 0:00:01]}  e1=Q {[%clk 0:00:12]} 0-1


[Site "https://www.chess.com"]

[Event "Titled Tuesday Blitz November 30 2021"]
[White "Rasulov, Vugar"]
[Black "Yilmaz, Mustafa"]
[WhiteFideId "13402390"]
[BlackFideId "6302718"]
[WhiteElo "2560"]
[BlackElo "2518"]
[Result "0-1"]
[Round "11"]
[TimeControl "180+1"]
[Date "2021.11.30"]
[WhiteClock "0:00:03"]
[BlackClock "0:00:07"]

1. d4 {[%clk 0:03:00]}  Nf6 {[%clk 0:03:00]} 2. c4 {[%clk 0:03:01]}  e6 {[%clk 0:03:00]} 3. Nc3 {[%clk 0:03:01]}  Bb4 {[%clk 0:03:00]} 4. Bd2 {[%clk 0:03:02]}  c5 {[%clk 0:02:56]} 5. a3 {[%clk 0:03:01]}  Bxc3 {[%clk 0:02:55]} 6. Bxc3 {[%clk 0:03:02]}  Ne4 {[%clk 0:02:55]} 7. Rc1 {[%clk 0:03:03]}  Qh4 {[%clk 0:02:50]} 8. g3 {[%clk 0:02:56]}  Nxc3 {[%clk 0:02:50]} 9. bxc3 {[%clk 0:02:53]}  Qe7 {[%clk 0:02:50]} 10. Bg2 {[%clk 0:02:52]}  cxd4 {[%clk 0:02:37]} 11. cxd4 {[%clk 0:02:53]}  Qxa3 {[%clk 0:02:37]} 12. Nf3 {[%clk 0:02:54]}  Qa5+ {[%clk 0:02:34]} 13. Nd2 {[%clk 0:02:48]}  d6 {[%clk 0:02:12]} 14. O-O {[%clk 0:02:47]}  O-O {[%clk 0:02:13]} 15. e3 {[%clk 0:02:35]}  Nc6 {[%clk 0:02:10]} 16. Rb1 {[%clk 0:02:28]}  Qc7 {[%clk 0:02:07]} 17. Qb3 {[%clk 0:02:29]}  b6 {[%clk 0:02:05]} 18. c5 {[%clk 0:02:10]}  bxc5 {[%clk 0:01:53]} 19. dxc5 {[%clk 0:02:11]}  d5 {[%clk 0:01:45]} 20. e4 {[%clk 0:02:03]}  Ba6 {[%clk 0:01:43]} 21. exd5 {[%clk 0:01:46]}  Nd4 {[%clk 0:01:23]} 22. Qb4 {[%clk 0:01:25]}  Bxf1 {[%clk 0:01:23]} 23. d6 {[%clk 0:01:19]}  Qc8 {[%clk 0:00:28]} 24. Rxf1 {[%clk 0:00:50]}  e5 {[%clk 0:00:23]} 25. Nf3 {[%clk 0:00:29]}  Rb8 {[%clk 0:00:21]} 26. Qc4 {[%clk 0:00:29]}  Nc6 {[%clk 0:00:17]} 27. Qe4 {[%clk 0:00:23]}  Rb4 {[%clk 0:00:16]} 28. Qd5 {[%clk 0:00:20]}  e4 {[%clk 0:00:17]} 29. Ne5 {[%clk 0:00:16]}  Nxe5 {[%clk 0:00:14]} 30. Qxe5 {[%clk 0:00:17]}  Rc4 {[%clk 0:00:13]} 31. Bxe4 {[%clk 0:00:11]}  Re8 {[%clk 0:00:12]} 32. d7 {[%clk 0:00:05]}  Qxd7 {[%clk 0:00:11]} 33. c6 {[%clk 0:00:06]}  Rxe5 {[%clk 0:00:09]} 34. cxd7 {[%clk 0:00:06]}  Rd4 {[%clk 0:00:09]} 35. Rc1 {[%clk 0:00:04]}  g6 {[%clk 0:00:09]} 36. Rc8+ {[%clk 0:00:04]}  Kg7 {[%clk 0:00:09]} 37. Bc6 {[%clk 0:00:04]}  Rc5 {[%clk 0:00:08]} 38. Ba4 {[%clk 0:00:04]}  Rcd5 {[%clk 0:00:06]} 39. Rc7 {[%clk 0:00:03]}  Rxa4 {[%clk 0:00:06]} 40. Kg2 {[%clk 0:00:03]}  Rad4 {[%clk 0:00:07]} 41. Rxa7 {[%clk 0:00:03]}  Rxd7 {[%clk 0:00:07]} 0-1


[Site "https://www.chess.com"]